{"text_format":"1","workbook":"xlsx","n_sheets":8,"sheets":["Hoofdmenu","Toelichting","NAW_gegevens","Voorblad","Specifieke informatie A","Controleoverzicht","Blad1","Parameters"],"not_rendered":{"charts":0,"images":1,"macros":1,"external_links":0,"defined_names":413,"comments":0,"pivot_tables":0},"unopened":[],"bounds":{"document_bytes":16777216,"sheet_cells":100000,"rows_first":2000,"rows_last":500,"rows_between":2000,"halvings":0,"cell_chars":16384,"cell_head_chars":4096},"cells_cut":0,"cells_raw":0,"read":"whole","date_system":"1900"}

{"sheet":"Hoofdmenu","index":0,"n_rows":3,"n_cols":2,"rows_kept":3,"cut":false,"hidden":false,"merged":[[0,0,0,1],[1,0,1,1]]}
["HOOFDMENU"]
[{"$f":"CONCATENATE(\"KWARTAALSTAAT ZVW \", jaar_id,\" \",kwartaal_id,\"E KW. (VERZEKERDEN JAN.-MRT.)\")","v":"KWARTAALSTAAT ZVW 2020 1E KW. (VERZEKERDEN JAN.-MRT.)"}]
["Navigatie","Afdrukken"]

{"sheet":"Toelichting","index":1,"n_rows":4,"n_cols":2,"rows_kept":4,"cut":false,"hidden":false,"merged":[]}
[]
[]
[]
[null,{"$f":"CONCATENATE(\" KWARTAALSTAAT ZVW \",jaar_id,\" \",kwartaal_id,\"E KWARTAAL (VERZEKERDEN JANUARI-MAART) - (VERSIE: \",versie_id,\")\")","v":" KWARTAALSTAAT ZVW 2020 1E KWARTAAL (VERZEKERDEN JANUARI-MAART) - (VERSIE: INF2020ZVW.1B)"}]

{"sheet":"NAW_gegevens","index":2,"n_rows":35,"n_cols":6,"rows_kept":35,"cut":false,"hidden":false,"merged":[[2,1,2,2],[3,1,3,2],[11,1,11,4]]}
[]
[]
[null,"NAW-GEGEVENS"]
[null,{"$f":"CONCATENATE(\"KWARTAALSTAAT ZVW \", jaar_id,\" \",kwartaal_id,\"E KW. (VERZEKERDEN JAN.-MRT.)\")","v":"KWARTAALSTAAT ZVW 2020 1E KW. (VERZEKERDEN JAN.-MRT.)"}]
[null," Selecteer uw nummer:","0000 KIES UW UZOVI-NUMMER"]
[null," Uzovi-nummer:",{"$f":"MID(keuze_uzovi_nummer,1,4)","v":"0000"}]
[null," Zorgverzekeraar:"]
[null," Plaats:"]
[null," Contactpersoon:"]
[null," E-mail:"]
[]
[null,"Let op dat u het goede UZOVI-nummer invult, zie onderstaand overzicht:"]
[]
[null,"UZOVI","NAAM",null,null,"PLAATS"]
[null,"0101","N.V. UNIVÉ ZORG",null,null,"ARNHEM"]
[null,"0104","CENTRALE ZIEKTEKOSTENVERZEKERING NZV N.V.",null,null,"TILBURG"]
[null,"0201","OHRA ZIEKTEKOSTENVERZEKERINGEN N.V. ",null,null,"TILBURG"]
[null,"0403","ASR BASIS ZIEKTEKOSTENVERZEKERINGEN N.V. ",null,null,"UTRECHT"]
[null,"0699","IZA ZORGVERZEKERAAR N.V.",null,null,"ARNHEM"]
[null,"0736","N.V. ZORGVERZEKERAAR UMC",null,null,"ARNHEM"]
[null,"3311","ZILVEREN KRUIS ZORGVERZEKERINGEN N.V.",null,null,"LEIDEN"]
[null,"3313","INTERPOLIS ZORGVERZEKERINGEN N.V.",null,null,"LEIDEN"]
[null,3332,"MENZIS ZORGVERZEKERAAR N.V.",null,null,"WAGENINGEN"]
[null,3333,"ANDERZORG N.V.",null,null,"GRONINGEN"]
[null,3343,"ONVZ ZIEKTEKOSTENVERZEKERAAR N.V.",null,null,"HOUTEN"]
[null,"3347","ENO ZORGVERZEKERAAR N.V.",null,null,"DEVENTER"]
[null,3351,"FBTO ZORGVERZEKERINGEN N.V.",null,null,"LEEUWARDEN"]
[null,3352,"IPTIQ LIFE S.A.",null,null,"AMSTELVEEN"]
[null,3358,"DE FRIESLAND ZORGVERZEKERAAR N.V.",null,null,"LEEUWARDEN"]
[null,3359,"EUCARE INSURANCE PCC LTD",null,null,"TA' XBIEX"]
[null,"7029","OWM ZORGVERZEKERAAR 'DSW' U.A.",null,null,"SCHIEDAM"]
[null,"7037","STAD HOLLAND ZORGVERZEKERAAR OWM U.A.",null,null,"SCHIEDAM"]
[null,"7085","OWM ZORGVERZEKERAAR ZORG EN ZEKERHEID U.A.",null,null,"LEIDEN"]
[null,"7095","VGZ ZORGVERZEKERAAR N.V.",null,null,"ARNHEM"]
[null,"7119","OWM CENTRALE ZORGVERZEKRAARS GROEP, ZORGVERZEKERAAR U.A.",null,null,"TILBURG"]

{"sheet":"Voorblad","index":3,"n_rows":25,"n_cols":4,"rows_kept":25,"cut":false,"hidden":false,"merged":[[15,3,16,11],[13,3,14,11],[19,3,20,11],[17,3,18,11]]}
[null,null,"VOORBLAD"]
[]
[]
[]
[]
["Pagina 1"]
[]
[]
[]
[]
[]
[]
[]
[null,null,null,{"$f":"CONCATENATE(\"KWARTAALSTAAT ZVW \",jaar_id)","v":"KWARTAALSTAAT ZVW 2020"}]
[]
[null,null,null,{"$f":"CONCATENATE(kwartaal_id,\"E KWARTAAL\")","v":"1E KWARTAAL"}]
[]
[null,null,null,"(VERZEKERDEN JANUARI-MAART)"]
[]
[null,null,null,"SPECIFIEKE INFORMATIE"]
[]
[]
[]
[null,null,null,"    SPECIFIEKE INFORMATIE A"]
[null,null,null,"     ● Informatie risicoverevening (pagina 1 t/m 3)"]

{"sheet":"Specifieke informatie A","index":4,"n_rows":139,"n_cols":12,"rows_kept":139,"cut":false,"hidden":false,"merged":[[123,3,123,7],[104,3,104,7],[105,3,105,7],[106,3,106,7],[107,3,107,7],[108,3,108,7],[77,3,77,7],[78,3,78,7],[79,3,79,7],[102,3,103,7],[83,3,83,10],[84,3,84,10],[93,3,93,4],[85,3,85,10],[86,3,86,10],[87,9,89,11],[102,11,103,11],[102,8,102,10],[72,3,72,7],[73,3,73,7],[74,3,74,7],[75,3,75,7],[76,3,76,7],[67,3,67,7],[68,3,68,7],[69,3,69,7],[70,3,70,7],[71,3,71,7],[61,3,61,7],[62,3,62,7],[63,3,63,7],[64,3,64,7],[66,3,66,7],[33,3,33,7],[57,3,58,7],[57,8,57,10],[59,3,59,7],[60,3,60,7],[28,3,28,7],[29,3,29,7],[30,3,30,7],[31,3,31,7],[32,3,32,7],[23,3,23,7],[24,3,24,7],[25,3,25,7],[26,3,26,7],[27,3,27,7],[18,3,18,7],[19,3,19,7],[20,3,20,7],[21,3,21,7],[22,3,22,7],[138,3,138,4],[109,3,109,7],[110,3,110,7],[111,3,111,7],[112,3,112,7],[113,3,113,7],[114,3,114,7],[115,3,115,7],[116,3,116,7],[117,3,117,7],[118,3,118,7],[124,3,124,7],[119,3,119,7],[120,3,120,7],[121,3,121,7],[122,3,122,7],[132,9,134,11],[128,3,128,10],[129,3,129,10],[130,3,130,10],[131,3,131,10],[65,3,65,7],[11,11,12,11],[39,3,39,10],[48,3,48,4],[38,3,38,10],[41,9,43,11],[40,3,40,10],[37,3,37,10],[57,11,58,11],[11,8,11,10],[11,3,12,7],[13,3,13,7],[14,3,14,7],[15,3,15,7],[16,3,16,7],[17,3,17,7]]}
[null,null,"INVULSPECIFICATIES SPECIFIEKE INFORMATIE A"]
[]
[]
[]
[]
["Pagina 1",null,null,{"$f":"CONCATENATE(\"KWARTAALSTAAT ZVW \", jaar_id,\" \",kwartaal_id,\"E KWARTAAL (VERZEKERDEN JANUARI-MAART)\")","v":"KWARTAALSTAAT ZVW 2020 1E KWARTAAL (VERZEKERDEN JANUARI-MAART)"}]
[null,null,null,"SPECIFIEKE INFORMATIE A"]
[null,null,null,{"$f":"IF(naw_uzovi_zorgverzekeraar<>\"0000\",CONCATENATE(UPPER(naw_naam_zorgverzekeraar),\", \",UPPER(naw_plaats_zorgverzekeraar)),\"\")","v":""},null,null,null,null,null,null,null,{"$f":"CONCATENATE(\"UZOVI: \",naw_uzovi_zorgverzekeraar)","v":"UZOVI: 0000"}]
[null,null,null,"SPECIFICATIES INFORMATIE RISICOVEREVENING"]
[null,null,null,"VERZEKERDENSTAND NAAR RISICOKLASSE",null,null,null,null,null,null,null,"Peildatum: datum van nominale premieprolongatie"]
[null,null,null,null,null,null,null,null,null,null,null,"voor de maand JANUARI 2020"]
[null,null,null," LEEFTIJD",null,null,null,null,"AANTAL NAAR GESLACHT",null,null,"TOTAAL \nAANTAL"]
[null,null,null,null,null,null,null,null,"MAN","VROUW","ONBEPAALD"]
[null,null,null,"  1a.   0  t/m   1",null,null,null,null,null,null,null,{"$f":"SUM(I14:K14)","v":0}]
[null,null,null,"  1b.   2  t/m   4",null,null,null,null,null,null,null,{"$f":"SUM(I15:K15)","v":0}]
[null,null,null,"  2.     5  t/m   9",null,null,null,null,null,null,null,0]
[null,null,null,"  3.   10  t/m 14",null,null,null,null,null,null,null,0]
[null,null,null,"  4.   15  t/m 19",null,null,null,null,null,null,null,0]
[null,null,null,"  5.   20  t/m 24",null,null,null,null,null,null,null,0]
[null,null,null,"  6.   25  t/m 29",null,null,null,null,null,null,null,0]
[null,null,null,"  7.   30  t/m 34",null,null,null,null,null,null,null,0]
[null,null,null,"  8.   35  t/m 39",null,null,null,null,null,null,null,0]
[null,null,null,"  9.   40  t/m 44",null,null,null,null,null,null,null,0]
[null,null,null," 10.  45  t/m 49",null,null,null,null,null,null,null,0]
[null,null,null," 11.  50  t/m 54",null,null,null,null,null,null,null,0]
[null,null,null," 12.  55  t/m 59",null,null,null,null,null,null,null,0]
[null,null,null," 13.  60  t/m 64",null,null,null,null,null,null,null,0]
[null,null,null," 14.  65  t/m 69",null,null,null,null,null,null,null,0]
[null,null,null," 15.  70  t/m 74",null,null,null,null,null,null,null,0]
[null,null,null," 16.  75  t/m 79",null,null,null,null,null,null,null,0]
[null,null,null," 17.  80  t/m 84",null,null,null,null,null,null,null,0]
[null,null,null," 18.  85  t/m 89",null,null,null,null,null,null,null,0]
[null,null,null," 19.  90 en ouder",null,null,null,null,null,null,null,0]
[null,null,null," TOTAAL",null,null,null,null,{"$f":"SUM(I14:I33)","v":0},{"$f":"SUM(J14:J33)","v":0},{"$f":"SUM(K14:K33)","v":0},0]
[]
[null,null,null,"VERZEKERDENSTAND NAAR NOMINALE PREMIE",null,null,null,null,null,null,null,"Peildatum: datum van nominale premieprolongatie"]
[null,null,null,null,null,null,null,null,null,null,null,"voor de maand JANUARI 2020"]
[null,null,null,null,null,null,null,null,null,null,null,"AANTAL"]
[null,null,null," Verzekerden met nominale premie Zvw"]
[null,null,null," Verzekerden zonder nominale premie Zvw"]
[null,null,null," TOTAAL",null,null,null,null,null,null,null,{"$f":"SUM(L39:L40)","v":0}]
[null,null,null,null,null,null,null,null,null,{"$f":"IF(AND(ISBLANK(K34)=FALSE,ISBLANK(L39)=FALSE),IF(L39<SUM(L19:L33),\"ATTENTIE: is het juist dat het aantal verzekerden \nmet nominale premie kleiner is dan het totaal\naantal verzekerden van 20 jaar en ouder?\",\"\"),\"\")","v":""}]
[]
[]
[]
[]
[]
[]
[null,null,null,{"$f":"NOW()","v":"2020-02-13T10:23:26.620"},null,null,null,null,null,null,null,{"$f":"CONCATENATE(\"Specifieke informatie A, \",LOWER(A6))","v":"Specifieke informatie A, pagina 1"}]
[]
["Pagina 2",null,null,{"$f":"CONCATENATE(\"KWARTAALSTAAT ZVW \", jaar_id,\" \",kwartaal_id,\"E KWARTAAL (VERZEKERDEN JANUARI-MAART)\")","v":"KWARTAALSTAAT ZVW 2020 1E KWARTAAL (VERZEKERDEN JANUARI-MAART)"}]
[null,null,null,"SPECIFIEKE INFORMATIE A"]
[null,null,null,{"$f":"IF(naw_uzovi_zorgverzekeraar<>\"0000\",CONCATENATE(UPPER(naw_naam_zorgverzekeraar),\", \",UPPER(naw_plaats_zorgverzekeraar)),\"\")","v":""},null,null,null,null,null,null,null,{"$f":"CONCATENATE(\"UZOVI: \",naw_uzovi_zorgverzekeraar)","v":"UZOVI: 0000"}]
[]
[null,null,null,"SPECIFICATIES INFORMATIE RISICOVEREVENING"]
[null,null,null,"VERZEKERDENSTAND NAAR RISICOKLASSE",null,null,null,null,null,null,null,"Peildatum: datum van nominale premieprolongatie"]
[null,null,null,null,null,null,null,null,null,null,null,"voor de maand FEBRUARI 2020"]
[null,null,null," LEEFTIJD",null,null,null,null,"AANTAL NAAR GESLACHT",null,null,"TOTAAL \nAANTAL"]
[null,null,null,null,null,null,null,null,"MAN","VROUW","ONBEPAALD"]
[null,null,null,"  1a.   0  t/m   1",null,null,null,null,null,null,null,{"$f":"SUM(I60:K60)","v":0}]
[null,null,null,"  1b.   2  t/m   4",null,null,null,null,null,null,null,{"$f":"SUM(I61:K61)","v":0}]
[null,null,null,"  2.     5  t/m   9",null,null,null,null,null,null,null,0]
[null,null,null,"  3.   10  t/m 14",null,null,null,null,null,null,null,0]
[null,null,null,"  4.   15  t/m 19",null,null,null,null,null,null,null,0]
[null,null,null,"  5.   20  t/m 24",null,null,null,null,null,null,null,0]
[null,null,null,"  6.   25  t/m 29",null,null,null,null,null,null,null,0]
[null,null,null,"  7.   30  t/m 34",null,null,null,null,null,null,null,0]
[null,null,null,"  8.   35  t/m 39",null,null,null,null,null,null,null,0]
[null,null,null,"  9.   40  t/m 44",null,null,null,null,null,null,null,0]
[null,null,null," 10.  45  t/m 49",null,null,null,null,null,null,null,0]
[null,null,null," 11.  50  t/m 54",null,null,null,null,null,null,null,0]
[null,null,null," 12.  55  t/m 59",null,null,null,null,null,null,null,0]
[null,null,null," 13.  60  t/m 64",null,null,null,null,null,null,null,0]
[null,null,null," 14.  65  t/m 69",null,null,null,null,null,null,null,0]
[null,null,null," 15.  70  t/m 74",null,null,null,null,null,null,null,0]
[null,null,null," 16.  75  t/m 79",null,null,null,null,null,null,null,0]
[null,null,null," 17.  80  t/m 84",null,null,null,null,null,null,null,0]
[null,null,null," 18.  85  t/m 89",null,null,null,null,null,null,null,0]
[null,null,null," 19.  90 en ouder",null,null,null,null,null,null,null,0]
[null,null,null," TOTAAL",null,null,null,null,{"$f":"SUM(I60:I79)","v":0},{"$f":"SUM(J60:J79)","v":0},{"$f":"SUM(K60:K79)","v":0},0]
[]
[null,null,null,"VERZEKERDENSTAND NAAR NOMINALE PREMIE",null,null,null,null,null,null,null,"Peildatum: datum van nominale premieprolongatie"]
[null,null,null,null,null,null,null,null,null,null,null,"voor de maand FEBRUARI 2020"]
[null,null,null,null,null,null,null,null,null,null,null,"AANTAL"]
[null,null,null," Verzekerden met nominale premie Zvw"]
[null,null,null," Verzekerden zonder nominale premie Zvw"]
[null,null,null," TOTAAL",null,null,null,null,null,null,null,{"$f":"SUM(L85:L86)","v":0}]
[null,null,null,null,null,null,null,null,null,{"$f":"IF(AND(ISBLANK(K80)=FALSE,ISBLANK(L85)=FALSE),IF(L85<SUM(L65:L79),\"ATTENTIE: is het juist dat het aantal verzekerden \nmet nominale premie kleiner is dan het totaal\naantal verzekerden van 20 jaar en ouder?\",\"\"),\"\")","v":""}]
[]
[]
[]
[]
[]
[null,null,null,{"$f":"NOW()","v":"2020-02-13T10:23:26.620"},null,null,null,null,null,null,null,{"$f":"CONCATENATE(\"Specifieke informatie A, \",LOWER(A51))","v":"Specifieke informatie A, pagina 2"}]
[]
["Pagina 3",null,null,{"$f":"CONCATENATE(\"KWARTAALSTAAT ZVW \", jaar_id,\" \",kwartaal_id,\"E KWARTAAL (VERZEKERDEN JANUARI-MAART)\")","v":"KWARTAALSTAAT ZVW 2020 1E KWARTAAL (VERZEKERDEN JANUARI-MAART)"}]
[null,null,null,"SPECIFIEKE INFORMATIE A"]
[null,null,null,{"$f":"IF(naw_uzovi_zorgverzekeraar<>\"0000\",CONCATENATE(UPPER(naw_naam_zorgverzekeraar),\", \",UPPER(naw_plaats_zorgverzekeraar)),\"\")","v":""},null,null,null,null,null,null,null,{"$f":"CONCATENATE(\"UZOVI: \",naw_uzovi_zorgverzekeraar)","v":"UZOVI: 0000"}]
[]
[null,null,null,"SPECIFICATIES INFORMATIE RISICOVEREVENING"]
[null,null,null,"VERZEKERDENSTAND NAAR RISICOKLASSE",null,null,null,null,null,null,null,"Peildatum: datum van nominale premieprolongatie"]
[null,null,null,null,null,null,null,null,null,null,null,"voor de maand MAART 2020"]
[null,null,null," LEEFTIJD",null,null,null,null,"AANTAL NAAR GESLACHT",null,null,"TOTAAL \nAANTAL"]
[null,null,null,null,null,null,null,null,"MAN","VROUW","ONBEPAALD"]
[null,null,null,"  1a.   0  t/m   1",null,null,null,null,null,null,null,{"$f":"SUM(I105:K105)","v":0}]
[null,null,null,"  1b.   2  t/m   4",null,null,null,null,null,null,null,{"$f":"SUM(I106:K106)","v":0}]
[null,null,null,"  2.     5  t/m   9",null,null,null,null,null,null,null,0]
[null,null,null,"  3.   10  t/m 14",null,null,null,null,null,null,null,0]
[null,null,null,"  4.   15  t/m 19",null,null,null,null,null,null,null,0]
[null,null,null,"  5.   20  t/m 24",null,null,null,null,null,null,null,0]
[null,null,null,"  6.   25  t/m 29",null,null,null,null,null,null,null,0]
[null,null,null,"  7.   30  t/m 34",null,null,null,null,null,null,null,0]
[null,null,null,"  8.   35  t/m 39",null,null,null,null,null,null,null,0]
[null,null,null,"  9.   40  t/m 44",null,null,null,null,null,null,null,0]
[null,null,null," 10.  45  t/m 49",null,null,null,null,null,null,null,0]
[null,null,null," 11.  50  t/m 54",null,null,null,null,null,null,null,0]
[null,null,null," 12.  55  t/m 59",null,null,null,null,null,null,null,0]
[null,null,null," 13.  60  t/m 64",null,null,null,null,null,null,null,0]
[null,null,null," 14.  65  t/m 69",null,null,null,null,null,null,null,0]
[null,null,null," 15.  70  t/m 74",null,null,null,null,null,null,null,0]
[null,null,null," 16.  75  t/m 79",null,null,null,null,null,null,null,0]
[null,null,null," 17.  80  t/m 84",null,null,null,null,null,null,null,0]
[null,null,null," 18.  85  t/m 89",null,null,null,null,null,null,null,0]
[null,null,null," 19.  90 en ouder",null,null,null,null,null,null,null,0]
[null,null,null," TOTAAL",null,null,null,null,{"$f":"SUM(I105:I124)","v":0},{"$f":"SUM(J105:J124)","v":0},{"$f":"SUM(K105:K124)","v":0},0]
[]
[null,null,null,"VERZEKERDENSTAND NAAR NOMINALE PREMIE",null,null,null,null,null,null,null,"Peildatum: datum van nominale premieprolongatie"]
[null,null,null,null,null,null,null,null,null,null,null,"voor de maand MAART 2020"]
[null,null,null,null,null,null,null,null,null,null,null,"AANTAL"]
[null,null,null," Verzekerden met nominale premie Zvw"]
[null,null,null," Verzekerden zonder nominale premie Zvw"]
[null,null,null," TOTAAL",null,null,null,null,null,null,null,{"$f":"SUM(L130:L131)","v":0}]
[null,null,null,null,null,null,null,null,null,{"$f":"IF(AND(ISBLANK(K125)=FALSE,ISBLANK(L130)=FALSE),IF(L130<SUM(L110:L124),\"ATTENTIE: is het juist dat het aantal verzekerden \nmet nominale premie kleiner is dan het totaal\naantal verzekerden van 20 jaar en ouder?\",\"\"),\"\")","v":""}]
[]
[]
[]
[]
[]
[null,null,null,{"$f":"NOW()","v":"2020-02-13T10:23:26.620"},null,null,null,null,null,null,null,{"$f":"CONCATENATE(\"Specifieke informatie A, \",LOWER(A96))","v":"Specifieke informatie A, pagina 3"}]

{"sheet":"Controleoverzicht","index":5,"n_rows":49,"n_cols":12,"rows_kept":49,"cut":false,"hidden":false,"merged":[[13,3,13,8],[14,3,14,8],[10,10,11,10],[10,11,11,11],[10,9,11,9],[10,3,11,8],[12,3,12,8]]}
[null,null,"SPECIFICATIES CONTROLEOVERZICHT"]
[]
[]
[]
[]
["Pagina 1",null,null,{"$f":"CONCATENATE(\"KWARTAALSTAAT ZVW \", jaar_id,\" \",kwartaal_id,\"E KWARTAAL (VERZEKERDEN JANUARI-MAART)\")","v":"KWARTAALSTAAT ZVW 2020 1E KWARTAAL (VERZEKERDEN JANUARI-MAART)"}]
[null,null,null,"CONTROLEOVERZICHT"]
[null,null,null,{"$f":"IF(naw_uzovi_zorgverzekeraar<>\"0000\",CONCATENATE(UPPER(naw_naam_zorgverzekeraar),\", \",UPPER(naw_plaats_zorgverzekeraar)),\"\")","v":""},null,null,null,null,null,null,null,{"$f":"CONCATENATE(\"UZOVI: \",naw_uzovi_zorgverzekeraar)","v":"UZOVI: 0000"}]
[]
[null,null,null,"SPECIFIEKE INFORMATIE A"]
[null,null,null," VERZEKERDENSTANDEN",null,null,null,null,null,"JANUARI","FEBRUARI","MAART"]
[]
[null,null,null," Verzekerdenstand naar risicoklasse",null,null,null,null,null,{"$f":"'Specifieke informatie A'!L34","v":0},{"$f":"'Specifieke informatie A'!L80","v":0},{"$f":"'Specifieke informatie A'!L125","v":0}]
[null,null,null," Verzekerdenstand naar nominale premie",null,null,null,null,null,{"$f":"'Specifieke informatie A'!L41","v":0},{"$f":"'Specifieke informatie A'!L87","v":0},{"$f":"'Specifieke informatie A'!L132","v":0}]
[null,null,null," Verschil",null,null,null,null,null,{"$f":"IF(J13<>J14,J13-J14,\"\")","v":""},{"$f":"IF(K13<>K14,K13-K14,\"\")","v":""},{"$f":"IF(L13<>L14,L13-L14,\"\")","v":""}]
[]
[]
[]
[]
[]
[]
[]
[]
[]
[]
[]
[]
[]
[]
[]
[]
[]
[]
[]
[]
[]
[]
[]
[]
[]
[]
[]
[]
[]
[]
[]
[]
[]
[null,null,null,{"$f":"NOW()","v":"2020-02-13T10:23:26.620"},null,null,null,null,null,null,null,{"$f":"CONCATENATE(\"Controle-overzicht \",LOWER(A6))","v":"Controle-overzicht pagina 1"}]

{"sheet":"Blad1","index":6,"n_rows":203,"n_cols":17,"rows_kept":203,"cut":false,"hidden":true,"merged":[]}
[]
[]
[]
[]
[]
[]
[]
[]
[]
[]
[]
[null,null,null,null,"vcd_spec_idvar","vcd_waarde_flt","vcd_waarde_txt","vcd_toelichting_txt","vcd_spec1_idvar","vcd_spec2_idvar","vcd_spec3_idvar","vcd_attrib_idvar","vcd_eenheid_txt","vcd_dsnorder_flt","vcd_datatype_txt","vcd_format_txt","vcd_eenheid_flt"]
[null,null,null,null,"xstaat_kdrwet_id_","*=0","ZVPY","Excel numeriek om te zetten sleutel kdrwet via waarden","xstaat","kdrwet","id","","",null,"C",""]
[null,null,null,null,"xstaat_kdrwet_idjmd_","*=0","20200331","Excel numeriek om te zetten sleutel kdrwet periode","xstaat","kdrwet","idjmd","","",null,"C",""]
[null,null,null,null,"xstaat_uzovi_filename_","*=0","=CEL(\"bestandsnaam\")","Excel numeriek filenaam bevat ook sleutels","xstaat","uzovi","filename","","",null,"C",""]
[null,null,null,null,"xstaat_uzovi_id_","*=0","=NUMERIEKE.WAARDE(NAW_gegevens!$C$6)","Excel numeriek om te zetten sleutel uzovi","xstaat","uzovi","id","","",null,"C",""]
[null,null,null,null,"xstaat_uzovi_idvrs_","*=0","01","Excel numeriek om te zetten sleutel uzovi versie levering","xstaat","uzovi","idvrs","","",null,"C",""]
[null,null,null,null,"zvpxlft_m981_lft01a_m01V01","*='Specifieke informatie A'!$I$14","","Verzekerden risicoklasse- 00 t/m 01- man","zvpxlft","m981","lft01a","m01V01","Verzekerden",null,"N",""]
[null,null,null,null,"zvpxlft_m981_lft01a_m02V01","*='Specifieke informatie A'!$I$60","","Verzekerden risicoklasse- 00 t/m 01- man","zvpxlft","m981","lft01a","m02V01","Verzekerden",null,"N",""]
[null,null,null,null,"zvpxlft_m981_lft01a_m03V01","*='Specifieke informatie A'!$I$105","","Verzekerden risicoklasse- 00 t/m 01- man","zvpxlft","m981","lft01a","m03V01","Verzekerden",null,"N",""]
[null,null,null,null,"zvpxlft_m981_lft01b_m01V01","*='Specifieke informatie A'!$I$15","","Verzekerden risicoklasse- 02 t/m 04- man","zvpxlft","m981","lft01b","m01V01","Verzekerden",null,"N",""]
[null,null,null,null,"zvpxlft_m981_lft01b_m02V01","*='Specifieke informatie A'!$I$61","","Verzekerden risicoklasse- 02 t/m 04- man","zvpxlft","m981","lft01b","m02V01","Verzekerden",null,"N",""]
[null,null,null,null,"zvpxlft_m981_lft01b_m03V01","*='Specifieke informatie A'!$I$106","","Verzekerden risicoklasse- 02 t/m 04- man","zvpxlft","m981","lft01b","m03V01","Verzekerden",null,"N",""]
[null,null,null,null,"zvpxlft_m981_lft02_m01V01","*='Specifieke informatie A'!$I$16","","Verzekerden risicoklasse- 05 t/m 09- man","zvpxlft","m981","lft02","m01V01","Verzekerden",null,"N",""]
[null,null,null,null,"zvpxlft_m981_lft02_m02V01","*='Specifieke informatie A'!$I$62","","Verzekerden risicoklasse- 05 t/m 09- man","zvpxlft","m981","lft02","m02V01","Verzekerden",null,"N",""]
[null,null,null,null,"zvpxlft_m981_lft02_m03V01","*='Specifieke informatie A'!$I$107","","Verzekerden risicoklasse- 05 t/m 09- man","zvpxlft","m981","lft02","m03V01","Verzekerden",null,"N",""]
[null,null,null,null,"zvpxlft_m981_lft03_m01V01","*='Specifieke informatie A'!$I$17","","Verzekerden risicoklasse- 10 t/m 14- man","zvpxlft","m981","lft03","m01V01","Verzekerden",null,"N",""]
[null,null,null,null,"zvpxlft_m981_lft03_m02V01","*='Specifieke informatie A'!$I$63","","Verzekerden risicoklasse- 10 t/m 14- man","zvpxlft","m981","lft03","m02V01","Verzekerden",null,"N",""]
[null,null,null,null,"zvpxlft_m981_lft03_m03V01","*='Specifieke informatie A'!$I$108","","Verzekerden risicoklasse- 10 t/m 14- man","zvpxlft","m981","lft03","m03V01","Verzekerden",null,"N",""]
[null,null,null,null,"zvpxlft_m981_lft04_m01V01","*='Specifieke informatie A'!$I$18","","Verzekerden risicoklasse- 15 t/m 19- man","zvpxlft","m981","lft04","m01V01","Verzekerden",null,"N",""]
[null,null,null,null,"zvpxlft_m981_lft04_m02V01","*='Specifieke informatie A'!$I$64","","Verzekerden risicoklasse- 15 t/m 19- man","zvpxlft","m981","lft04","m02V01","Verzekerden",null,"N",""]
[null,null,null,null,"zvpxlft_m981_lft04_m03V01","*='Specifieke informatie A'!$I$109","","Verzekerden risicoklasse- 15 t/m 19- man","zvpxlft","m981","lft04","m03V01","Verzekerden",null,"N",""]
[null,null,null,null,"zvpxlft_m981_lft05_m01V01","*='Specifieke informatie A'!$I$19","","Verzekerden risicoklasse- 20 t/m 24- man","zvpxlft","m981","lft05","m01V01","Verzekerden",null,"N",""]
[null,null,null,null,"zvpxlft_m981_lft05_m02V01","*='Specifieke informatie A'!$I$65","","Verzekerden risicoklasse- 20 t/m 24- man","zvpxlft","m981","lft05","m02V01","Verzekerden",null,"N",""]
[null,null,null,null,"zvpxlft_m981_lft05_m03V01","*='Specifieke informatie A'!$I$110","","Verzekerden risicoklasse- 20 t/m 24- man","zvpxlft","m981","lft05","m03V01","Verzekerden",null,"N",""]
[null,null,null,null,"zvpxlft_m981_lft06_m01V01","*='Specifieke informatie A'!$I$20","","Verzekerden risicoklasse- 25 t/m 29- man","zvpxlft","m981","lft06","m01V01","Verzekerden",null,"N",""]
[null,null,null,null,"zvpxlft_m981_lft06_m02V01","*='Specifieke informatie A'!$I$66","","Verzekerden risicoklasse- 25 t/m 29- man","zvpxlft","m981","lft06","m02V01","Verzekerden",null,"N",""]
[null,null,null,null,"zvpxlft_m981_lft06_m03V01","*='Specifieke informatie A'!$I$111","","Verzekerden risicoklasse- 25 t/m 29- man","zvpxlft","m981","lft06","m03V01","Verzekerden",null,"N",""]
[null,null,null,null,"zvpxlft_m981_lft07_m01V01","*='Specifieke informatie A'!$I$21","","Verzekerden risicoklasse- 30 t/m 34- man","zvpxlft","m981","lft07","m01V01","Verzekerden",null,"N",""]
[null,null,null,null,"zvpxlft_m981_lft07_m02V01","*='Specifieke informatie A'!$I$67","","Verzekerden risicoklasse- 30 t/m 34- man","zvpxlft","m981","lft07","m02V01","Verzekerden",null,"N",""]
[null,null,null,null,"zvpxlft_m981_lft07_m03V01","*='Specifieke informatie A'!$I$112","","Verzekerden risicoklasse- 30 t/m 34- man","zvpxlft","m981","lft07","m03V01","Verzekerden",null,"N",""]
[null,null,null,null,"zvpxlft_m981_lft08_m01V01","*='Specifieke informatie A'!$I$22","","Verzekerden risicoklasse- 35 t/m 39- man","zvpxlft","m981","lft08","m01V01","Verzekerden",null,"N",""]
[null,null,null,null,"zvpxlft_m981_lft08_m02V01","*='Specifieke informatie A'!$I$68","","Verzekerden risicoklasse- 35 t/m 39- man","zvpxlft","m981","lft08","m02V01","Verzekerden",null,"N",""]
[null,null,null,null,"zvpxlft_m981_lft08_m03V01","*='Specifieke informatie A'!$I$113","","Verzekerden risicoklasse- 35 t/m 39- man","zvpxlft","m981","lft08","m03V01","Verzekerden",null,"N",""]
[null,null,null,null,"zvpxlft_m981_lft09_m01V01","*='Specifieke informatie A'!$I$23","","Verzekerden risicoklasse- 40 t/m 44- man","zvpxlft","m981","lft09","m01V01","Verzekerden",null,"N",""]
[null,null,null,null,"zvpxlft_m981_lft09_m02V01","*='Specifieke informatie A'!$I$69","","Verzekerden risicoklasse- 40 t/m 44- man","zvpxlft","m981","lft09","m02V01","Verzekerden",null,"N",""]
[null,null,null,null,"zvpxlft_m981_lft09_m03V01","*='Specifieke informatie A'!$I$114","","Verzekerden risicoklasse- 40 t/m 44- man","zvpxlft","m981","lft09","m03V01","Verzekerden",null,"N",""]
[null,null,null,null,"zvpxlft_m981_lft10_m01V01","*='Specifieke informatie A'!$I$24","","Verzekerden risicoklasse- 45 t/m 49- man","zvpxlft","m981","lft10","m01V01","Verzekerden",null,"N",""]
[null,null,null,null,"zvpxlft_m981_lft10_m02V01","*='Specifieke informatie A'!$I$70","","Verzekerden risicoklasse- 45 t/m 49- man","zvpxlft","m981","lft10","m02V01","Verzekerden",null,"N",""]
[null,null,null,null,"zvpxlft_m981_lft10_m03V01","*='Specifieke informatie A'!$I$115","","Verzekerden risicoklasse- 45 t/m 49- man","zvpxlft","m981","lft10","m03V01","Verzekerden",null,"N",""]
[null,null,null,null,"zvpxlft_m981_lft11_m01V01","*='Specifieke informatie A'!$I$25","","Verzekerden risicoklasse- 50 t/m 54- man","zvpxlft","m981","lft11","m01V01","Verzekerden",null,"N",""]
[null,null,null,null,"zvpxlft_m981_lft11_m02V01","*='Specifieke informatie A'!$I$71","","Verzekerden risicoklasse- 50 t/m 54- man","zvpxlft","m981","lft11","m02V01","Verzekerden",null,"N",""]
[null,null,null,null,"zvpxlft_m981_lft11_m03V01","*='Specifieke informatie A'!$I$116","","Verzekerden risicoklasse- 50 t/m 54- man","zvpxlft","m981","lft11","m03V01","Verzekerden",null,"N",""]
[null,null,null,null,"zvpxlft_m981_lft12_m01V01","*='Specifieke informatie A'!$I$26","","Verzekerden risicoklasse- 55 t/m 59- man","zvpxlft","m981","lft12","m01V01","Verzekerden",null,"N",""]
[null,null,null,null,"zvpxlft_m981_lft12_m02V01","*='Specifieke informatie A'!$I$72","","Verzekerden risicoklasse- 55 t/m 59- man","zvpxlft","m981","lft12","m02V01","Verzekerden",null,"N",""]
[null,null,null,null,"zvpxlft_m981_lft12_m03V01","*='Specifieke informatie A'!$I$117","","Verzekerden risicoklasse- 55 t/m 59- man","zvpxlft","m981","lft12","m03V01","Verzekerden",null,"N",""]
[null,null,null,null,"zvpxlft_m981_lft13_m01V01","*='Specifieke informatie A'!$I$27","","Verzekerden risicoklasse- 60 t/m 64- man","zvpxlft","m981","lft13","m01V01","Verzekerden",null,"N",""]
[null,null,null,null,"zvpxlft_m981_lft13_m02V01","*='Specifieke informatie A'!$I$73","","Verzekerden risicoklasse- 60 t/m 64- man","zvpxlft","m981","lft13","m02V01","Verzekerden",null,"N",""]
[null,null,null,null,"zvpxlft_m981_lft13_m03V01","*='Specifieke informatie A'!$I$118","","Verzekerden risicoklasse- 60 t/m 64- man","zvpxlft","m981","lft13","m03V01","Verzekerden",null,"N",""]
[null,null,null,null,"zvpxlft_m981_lft14_m01V01","*='Specifieke informatie A'!$I$28","","Verzekerden risicoklasse- 65 t/m 69- man","zvpxlft","m981","lft14","m01V01","Verzekerden",null,"N",""]
[null,null,null,null,"zvpxlft_m981_lft14_m02V01","*='Specifieke informatie A'!$I$74","","Verzekerden risicoklasse- 65 t/m 69- man","zvpxlft","m981","lft14","m02V01","Verzekerden",null,"N",""]
[null,null,null,null,"zvpxlft_m981_lft14_m03V01","*='Specifieke informatie A'!$I$119","","Verzekerden risicoklasse- 65 t/m 69- man","zvpxlft","m981","lft14","m03V01","Verzekerden",null,"N",""]
[null,null,null,null,"zvpxlft_m981_lft15_m01V01","*='Specifieke informatie A'!$I$29","","Verzekerden risicoklasse- 70 t/m 74- man","zvpxlft","m981","lft15","m01V01","Verzekerden",null,"N",""]
[null,null,null,null,"zvpxlft_m981_lft15_m02V01","*='Specifieke informatie A'!$I$75","","Verzekerden risicoklasse- 70 t/m 74- man","zvpxlft","m981","lft15","m02V01","Verzekerden",null,"N",""]
[null,null,null,null,"zvpxlft_m981_lft15_m03V01","*='Specifieke informatie A'!$I$120","","Verzekerden risicoklasse- 70 t/m 74- man","zvpxlft","m981","lft15","m03V01","Verzekerden",null,"N",""]
[null,null,null,null,"zvpxlft_m981_lft16_m01V01","*='Specifieke informatie A'!$I$30","","Verzekerden risicoklasse- 75 t/m 79- man","zvpxlft","m981","lft16","m01V01","Verzekerden",null,"N",""]
[null,null,null,null,"zvpxlft_m981_lft16_m02V01","*='Specifieke informatie A'!$I$76","","Verzekerden risicoklasse- 75 t/m 79- man","zvpxlft","m981","lft16","m02V01","Verzekerden",null,"N",""]
[null,null,null,null,"zvpxlft_m981_lft16_m03V01","*='Specifieke informatie A'!$I$121","","Verzekerden risicoklasse- 75 t/m 79- man","zvpxlft","m981","lft16","m03V01","Verzekerden",null,"N",""]
[null,null,null,null,"zvpxlft_m981_lft17_m01V01","*='Specifieke informatie A'!$I$31","","Verzekerden risicoklasse- 80 t/m 84- man","zvpxlft","m981","lft17","m01V01","Verzekerden",null,"N",""]
[null,null,null,null,"zvpxlft_m981_lft17_m02V01","*='Specifieke informatie A'!$I$77","","Verzekerden risicoklasse- 80 t/m 84- man","zvpxlft","m981","lft17","m02V01","Verzekerden",null,"N",""]
[null,null,null,null,"zvpxlft_m981_lft17_m03V01","*='Specifieke informatie A'!$I$122","","Verzekerden risicoklasse- 80 t/m 84- man","zvpxlft","m981","lft17","m03V01","Verzekerden",null,"N",""]
[null,null,null,null,"zvpxlft_m981_lft18_m01V01","*='Specifieke informatie A'!$I$32","","Verzekerden risicoklasse- 85 t/m 89- man","zvpxlft","m981","lft18","m01V01","Verzekerden",null,"N",""]
[null,null,null,null,"zvpxlft_m981_lft18_m02V01","*='Specifieke informatie A'!$I$78","","Verzekerden risicoklasse- 85 t/m 89- man","zvpxlft","m981","lft18","m02V01","Verzekerden",null,"N",""]
[null,null,null,null,"zvpxlft_m981_lft18_m03V01","*='Specifieke informatie A'!$I$123","","Verzekerden risicoklasse- 85 t/m 89- man","zvpxlft","m981","lft18","m03V01","Verzekerden",null,"N",""]
[null,null,null,null,"zvpxlft_m981_lft19_m01V01","*='Specifieke informatie A'!$I$33","","Verzekerden risicoklasse- 90 en ouder- man","zvpxlft","m981","lft19","m01V01","Verzekerden",null,"N",""]
[null,null,null,null,"zvpxlft_m981_lft19_m02V01","*='Specifieke informatie A'!$I$79","","Verzekerden risicoklasse- 90 en ouder- man","zvpxlft","m981","lft19","m02V01","Verzekerden",null,"N",""]
[null,null,null,null,"zvpxlft_m981_lft19_m03V01","*='Specifieke informatie A'!$I$124","","Verzekerden risicoklasse- 90 en ouder- man","zvpxlft","m981","lft19","m03V01","Verzekerden",null,"N",""]
[null,null,null,null,"zvpxlft_v981_lft01a_m01V01","*='Specifieke informatie A'!$J$14","","Verzekerden risicoklasse- 00 t/m 01- vrouw","zvpxlft","v981","lft01a","m01V01","Verzekerden",null,"N",""]
[null,null,null,null,"zvpxlft_v981_lft01a_m02V01","*='Specifieke informatie A'!$J$60","","Verzekerden risicoklasse- 00 t/m 01- vrouw","zvpxlft","v981","lft01a","m02V01","Verzekerden",null,"N",""]
[null,null,null,null,"zvpxlft_v981_lft01a_m03V01","*='Specifieke informatie A'!$J$105","","Verzekerden risicoklasse- 00 t/m 01- vrouw","zvpxlft","v981","lft01a","m03V01","Verzekerden",null,"N",""]
[null,null,null,null,"zvpxlft_v981_lft01b_m01V01","*='Specifieke informatie A'!$J$15","","Verzekerden risicoklasse- 02 t/m 04- vrouw","zvpxlft","v981","lft01b","m01V01","Verzekerden",null,"N",""]
[null,null,null,null,"zvpxlft_v981_lft01b_m02V01","*='Specifieke informatie A'!$J$61","","Verzekerden risicoklasse- 02 t/m 04- vrouw","zvpxlft","v981","lft01b","m02V01","Verzekerden",null,"N",""]
[null,null,null,null,"zvpxlft_v981_lft01b_m03V01","*='Specifieke informatie A'!$J$106","","Verzekerden risicoklasse- 02 t/m 04- vrouw","zvpxlft","v981","lft01b","m03V01","Verzekerden",null,"N",""]
[null,null,null,null,"zvpxlft_v981_lft02_m01V01","*='Specifieke informatie A'!$J$16","","Verzekerden risicoklasse- 05 t/m 09- vrouw","zvpxlft","v981","lft02","m01V01","Verzekerden",null,"N",""]
[null,null,null,null,"zvpxlft_v981_lft02_m02V01","*='Specifieke informatie A'!$J$62","","Verzekerden risicoklasse- 05 t/m 09- vrouw","zvpxlft","v981","lft02","m02V01","Verzekerden",null,"N",""]
[null,null,null,null,"zvpxlft_v981_lft02_m03V01","*='Specifieke informatie A'!$J$107","","Verzekerden risicoklasse- 05 t/m 09- vrouw","zvpxlft","v981","lft02","m03V01","Verzekerden",null,"N",""]
[null,null,null,null,"zvpxlft_v981_lft03_m01V01","*='Specifieke informatie A'!$J$17","","Verzekerden risicoklasse- 10 t/m 14- vrouw","zvpxlft","v981","lft03","m01V01","Verzekerden",null,"N",""]
[null,null,null,null,"zvpxlft_v981_lft03_m02V01","*='Specifieke informatie A'!$J$63","","Verzekerden risicoklasse- 10 t/m 14- vrouw","zvpxlft","v981","lft03","m02V01","Verzekerden",null,"N",""]
[null,null,null,null,"zvpxlft_v981_lft03_m03V01","*='Specifieke informatie A'!$J$108","","Verzekerden risicoklasse- 10 t/m 14- vrouw","zvpxlft","v981","lft03","m03V01","Verzekerden",null,"N",""]
[null,null,null,null,"zvpxlft_v981_lft04_m01V01","*='Specifieke informatie A'!$J$18","","Verzekerden risicoklasse- 15 t/m 19- vrouw","zvpxlft","v981","lft04","m01V01","Verzekerden",null,"N",""]
[null,null,null,null,"zvpxlft_v981_lft04_m02V01","*='Specifieke informatie A'!$J$64","","Verzekerden risicoklasse- 15 t/m 19- vrouw","zvpxlft","v981","lft04","m02V01","Verzekerden",null,"N",""]
[null,null,null,null,"zvpxlft_v981_lft04_m03V01","*='Specifieke informatie A'!$J$109","","Verzekerden risicoklasse- 15 t/m 19- vrouw","zvpxlft","v981","lft04","m03V01","Verzekerden",null,"N",""]
[null,null,null,null,"zvpxlft_v981_lft05_m01V01","*='Specifieke informatie A'!$J$19","","Verzekerden risicoklasse- 20 t/m 24- vrouw","zvpxlft","v981","lft05","m01V01","Verzekerden",null,"N",""]
[null,null,null,null,"zvpxlft_v981_lft05_m02V01","*='Specifieke informatie A'!$J$65","","Verzekerden risicoklasse- 20 t/m 24- vrouw","zvpxlft","v981","lft05","m02V01","Verzekerden",null,"N",""]
[null,null,null,null,"zvpxlft_v981_lft05_m03V01","*='Specifieke informatie A'!$J$110","","Verzekerden risicoklasse- 20 t/m 24- vrouw","zvpxlft","v981","lft05","m03V01","Verzekerden",null,"N",""]
[null,null,null,null,"zvpxlft_v981_lft06_m01V01","*='Specifieke informatie A'!$J$20","","Verzekerden risicoklasse- 25 t/m 29- vrouw","zvpxlft","v981","lft06","m01V01","Verzekerden",null,"N",""]
[null,null,null,null,"zvpxlft_v981_lft06_m02V01","*='Specifieke informatie A'!$J$66","","Verzekerden risicoklasse- 25 t/m 29- vrouw","zvpxlft","v981","lft06","m02V01","Verzekerden",null,"N",""]
[null,null,null,null,"zvpxlft_v981_lft06_m03V01","*='Specifieke informatie A'!$J$111","","Verzekerden risicoklasse- 25 t/m 29- vrouw","zvpxlft","v981","lft06","m03V01","Verzekerden",null,"N",""]
[null,null,null,null,"zvpxlft_v981_lft07_m01V01","*='Specifieke informatie A'!$J$21","","Verzekerden risicoklasse- 30 t/m 34- vrouw","zvpxlft","v981","lft07","m01V01","Verzekerden",null,"N",""]
[null,null,null,null,"zvpxlft_v981_lft07_m02V01","*='Specifieke informatie A'!$J$67","","Verzekerden risicoklasse- 30 t/m 34- vrouw","zvpxlft","v981","lft07","m02V01","Verzekerden",null,"N",""]
[null,null,null,null,"zvpxlft_v981_lft07_m03V01","*='Specifieke informatie A'!$J$112","","Verzekerden risicoklasse- 30 t/m 34- vrouw","zvpxlft","v981","lft07","m03V01","Verzekerden",null,"N",""]
[null,null,null,null,"zvpxlft_v981_lft08_m01V01","*='Specifieke informatie A'!$J$22","","Verzekerden risicoklasse- 35 t/m 39- vrouw","zvpxlft","v981","lft08","m01V01","Verzekerden",null,"N",""]
[null,null,null,null,"zvpxlft_v981_lft08_m02V01","*='Specifieke informatie A'!$J$68","","Verzekerden risicoklasse- 35 t/m 39- vrouw","zvpxlft","v981","lft08","m02V01","Verzekerden",null,"N",""]
[null,null,null,null,"zvpxlft_v981_lft08_m03V01","*='Specifieke informatie A'!$J$113","","Verzekerden risicoklasse- 35 t/m 39- vrouw","zvpxlft","v981","lft08","m03V01","Verzekerden",null,"N",""]
[null,null,null,null,"zvpxlft_v981_lft09_m01V01","*='Specifieke informatie A'!$J$23","","Verzekerden risicoklasse- 40 t/m 44- vrouw","zvpxlft","v981","lft09","m01V01","Verzekerden",null,"N",""]
[null,null,null,null,"zvpxlft_v981_lft09_m02V01","*='Specifieke informatie A'!$J$69","","Verzekerden risicoklasse- 40 t/m 44- vrouw","zvpxlft","v981","lft09","m02V01","Verzekerden",null,"N",""]
[null,null,null,null,"zvpxlft_v981_lft09_m03V01","*='Specifieke informatie A'!$J$114","","Verzekerden risicoklasse- 40 t/m 44- vrouw","zvpxlft","v981","lft09","m03V01","Verzekerden",null,"N",""]
[null,null,null,null,"zvpxlft_v981_lft10_m01V01","*='Specifieke informatie A'!$J$24","","Verzekerden risicoklasse- 45 t/m 49- vrouw","zvpxlft","v981","lft10","m01V01","Verzekerden",null,"N",""]
[null,null,null,null,"zvpxlft_v981_lft10_m02V01","*='Specifieke informatie A'!$J$70","","Verzekerden risicoklasse- 45 t/m 49- vrouw","zvpxlft","v981","lft10","m02V01","Verzekerden",null,"N",""]
[null,null,null,null,"zvpxlft_v981_lft10_m03V01","*='Specifieke informatie A'!$J$115","","Verzekerden risicoklasse- 45 t/m 49- vrouw","zvpxlft","v981","lft10","m03V01","Verzekerden",null,"N",""]
[null,null,null,null,"zvpxlft_v981_lft11_m01V01","*='Specifieke informatie A'!$J$25","","Verzekerden risicoklasse- 50 t/m 54- vrouw","zvpxlft","v981","lft11","m01V01","Verzekerden",null,"N",""]
[null,null,null,null,"zvpxlft_v981_lft11_m02V01","*='Specifieke informatie A'!$J$71","","Verzekerden risicoklasse- 50 t/m 54- vrouw","zvpxlft","v981","lft11","m02V01","Verzekerden",null,"N",""]
[null,null,null,null,"zvpxlft_v981_lft11_m03V01","*='Specifieke informatie A'!$J$116","","Verzekerden risicoklasse- 50 t/m 54- vrouw","zvpxlft","v981","lft11","m03V01","Verzekerden",null,"N",""]
[null,null,null,null,"zvpxlft_v981_lft12_m01V01","*='Specifieke informatie A'!$J$26","","Verzekerden risicoklasse- 55 t/m 59- vrouw","zvpxlft","v981","lft12","m01V01","Verzekerden",null,"N",""]
[null,null,null,null,"zvpxlft_v981_lft12_m02V01","*='Specifieke informatie A'!$J$72","","Verzekerden risicoklasse- 55 t/m 59- vrouw","zvpxlft","v981","lft12","m02V01","Verzekerden",null,"N",""]
[null,null,null,null,"zvpxlft_v981_lft12_m03V01","*='Specifieke informatie A'!$J$117","","Verzekerden risicoklasse- 55 t/m 59- vrouw","zvpxlft","v981","lft12","m03V01","Verzekerden",null,"N",""]
[null,null,null,null,"zvpxlft_v981_lft13_m01V01","*='Specifieke informatie A'!$J$27","","Verzekerden risicoklasse- 60 t/m 64- vrouw","zvpxlft","v981","lft13","m01V01","Verzekerden",null,"N",""]
[null,null,null,null,"zvpxlft_v981_lft13_m02V01","*='Specifieke informatie A'!$J$73","","Verzekerden risicoklasse- 60 t/m 64- vrouw","zvpxlft","v981","lft13","m02V01","Verzekerden",null,"N",""]
[null,null,null,null,"zvpxlft_v981_lft13_m03V01","*='Specifieke informatie A'!$J$118","","Verzekerden risicoklasse- 60 t/m 64- vrouw","zvpxlft","v981","lft13","m03V01","Verzekerden",null,"N",""]
[null,null,null,null,"zvpxlft_v981_lft14_m01V01","*='Specifieke informatie A'!$J$28","","Verzekerden risicoklasse- 65 t/m 69- vrouw","zvpxlft","v981","lft14","m01V01","Verzekerden",null,"N",""]
[null,null,null,null,"zvpxlft_v981_lft14_m02V01","*='Specifieke informatie A'!$J$74","","Verzekerden risicoklasse- 65 t/m 69- vrouw","zvpxlft","v981","lft14","m02V01","Verzekerden",null,"N",""]
[null,null,null,null,"zvpxlft_v981_lft14_m03V01","*='Specifieke informatie A'!$J$119","","Verzekerden risicoklasse- 65 t/m 69- vrouw","zvpxlft","v981","lft14","m03V01","Verzekerden",null,"N",""]
[null,null,null,null,"zvpxlft_v981_lft15_m01V01","*='Specifieke informatie A'!$J$29","","Verzekerden risicoklasse- 70 t/m 74- vrouw","zvpxlft","v981","lft15","m01V01","Verzekerden",null,"N",""]
[null,null,null,null,"zvpxlft_v981_lft15_m02V01","*='Specifieke informatie A'!$J$75","","Verzekerden risicoklasse- 70 t/m 74- vrouw","zvpxlft","v981","lft15","m02V01","Verzekerden",null,"N",""]
[null,null,null,null,"zvpxlft_v981_lft15_m03V01","*='Specifieke informatie A'!$J$120","","Verzekerden risicoklasse- 70 t/m 74- vrouw","zvpxlft","v981","lft15","m03V01","Verzekerden",null,"N",""]
[null,null,null,null,"zvpxlft_v981_lft16_m01V01","*='Specifieke informatie A'!$J$30","","Verzekerden risicoklasse- 75 t/m 79- vrouw","zvpxlft","v981","lft16","m01V01","Verzekerden",null,"N",""]
[null,null,null,null,"zvpxlft_v981_lft16_m02V01","*='Specifieke informatie A'!$J$76","","Verzekerden risicoklasse- 75 t/m 79- vrouw","zvpxlft","v981","lft16","m02V01","Verzekerden",null,"N",""]
[null,null,null,null,"zvpxlft_v981_lft16_m03V01","*='Specifieke informatie A'!$J$121","","Verzekerden risicoklasse- 75 t/m 79- vrouw","zvpxlft","v981","lft16","m03V01","Verzekerden",null,"N",""]
[null,null,null,null,"zvpxlft_v981_lft17_m01V01","*='Specifieke informatie A'!$J$31","","Verzekerden risicoklasse- 80 t/m 84- vrouw","zvpxlft","v981","lft17","m01V01","Verzekerden",null,"N",""]
[null,null,null,null,"zvpxlft_v981_lft17_m02V01","*='Specifieke informatie A'!$J$77","","Verzekerden risicoklasse- 80 t/m 84- vrouw","zvpxlft","v981","lft17","m02V01","Verzekerden",null,"N",""]
[null,null,null,null,"zvpxlft_v981_lft17_m03V01","*='Specifieke informatie A'!$J$122","","Verzekerden risicoklasse- 80 t/m 84- vrouw","zvpxlft","v981","lft17","m03V01","Verzekerden",null,"N",""]
[null,null,null,null,"zvpxlft_v981_lft18_m01V01","*='Specifieke informatie A'!$J$32","","Verzekerden risicoklasse- 85 t/m 89- vrouw","zvpxlft","v981","lft18","m01V01","Verzekerden",null,"N",""]
[null,null,null,null,"zvpxlft_v981_lft18_m02V01","*='Specifieke informatie A'!$J$78","","Verzekerden risicoklasse- 85 t/m 89- vrouw","zvpxlft","v981","lft18","m02V01","Verzekerden",null,"N",""]
[null,null,null,null,"zvpxlft_v981_lft18_m03V01","*='Specifieke informatie A'!$J$123","","Verzekerden risicoklasse- 85 t/m 89- vrouw","zvpxlft","v981","lft18","m03V01","Verzekerden",null,"N",""]
[null,null,null,null,"zvpxlft_v981_lft19_m01V01","*='Specifieke informatie A'!$J$33","","Verzekerden risicoklasse- 90 en ouder- vrouw","zvpxlft","v981","lft19","m01V01","Verzekerden",null,"N",""]
[null,null,null,null,"zvpxlft_v981_lft19_m02V01","*='Specifieke informatie A'!$J$79","","Verzekerden risicoklasse- 90 en ouder- vrouw","zvpxlft","v981","lft19","m02V01","Verzekerden",null,"N",""]
[null,null,null,null,"zvpxlft_v981_lft19_m03V01","*='Specifieke informatie A'!$J$124","","Verzekerden risicoklasse- 90 en ouder- vrouw","zvpxlft","v981","lft19","m03V01","Verzekerden",null,"N",""]
[null,null,null,null,"zvpxlft_o981_lft01a_m01V01","*='Specifieke informatie A'!$K$14","","Verzekerden risicoklasse- 00 t/m 01- onbepaald","zvpxlft","v981","lft01a","m01V01","Verzekerden",null,"N",""]
[null,null,null,null,"zvpxlft_o981_lft01a_m02V01","*='Specifieke informatie A'!$K$60","","Verzekerden risicoklasse- 00 t/m 01- onbepaald","zvpxlft","v981","lft01a","m02V01","Verzekerden",null,"N",""]
[null,null,null,null,"zvpxlft_o981_lft01a_m03V01","*='Specifieke informatie A'!$K$105","","Verzekerden risicoklasse- 00 t/m 01- onbepaald","zvpxlft","v981","lft01a","m03V01","Verzekerden",null,"N",""]
[null,null,null,null,"zvpxlft_o981_lft01b_m01V01","*='Specifieke informatie A'!$K$15","","Verzekerden risicoklasse- 02 t/m 04- onbepaald","zvpxlft","v981","lft01b","m01V01","Verzekerden",null,"N",""]
[null,null,null,null,"zvpxlft_o981_lft01b_m02V01","*='Specifieke informatie A'!$K$61","","Verzekerden risicoklasse- 02 t/m 04- onbepaald","zvpxlft","v981","lft01b","m02V01","Verzekerden",null,"N",""]
[null,null,null,null,"zvpxlft_o981_lft01b_m03V01","*='Specifieke informatie A'!$K$106","","Verzekerden risicoklasse- 02 t/m 04- onbepaald","zvpxlft","v981","lft01b","m03V01","Verzekerden",null,"N",""]
[null,null,null,null,"zvpxlft_o981_lft02_m01V01","*='Specifieke informatie A'!$K$16","","Verzekerden risicoklasse- 05 t/m 09- onbepaald","zvpxlft","v981","lft02","m01V01","Verzekerden",null,"N",""]
[null,null,null,null,"zvpxlft_o981_lft02_m02V01","*='Specifieke informatie A'!$K$62","","Verzekerden risicoklasse- 05 t/m 09- onbepaald","zvpxlft","v981","lft02","m02V01","Verzekerden",null,"N",""]
[null,null,null,null,"zvpxlft_o981_lft02_m03V01","*='Specifieke informatie A'!$K$107","","Verzekerden risicoklasse- 05 t/m 09- onbepaald","zvpxlft","v981","lft02","m03V01","Verzekerden",null,"N",""]
[null,null,null,null,"zvpxlft_o981_lft03_m01V01","*='Specifieke informatie A'!$K$17","","Verzekerden risicoklasse- 10 t/m 14- onbepaald","zvpxlft","v981","lft03","m01V01","Verzekerden",null,"N",""]
[null,null,null,null,"zvpxlft_o981_lft03_m02V01","*='Specifieke informatie A'!$K$63","","Verzekerden risicoklasse- 10 t/m 14- onbepaald","zvpxlft","v981","lft03","m02V01","Verzekerden",null,"N",""]
[null,null,null,null,"zvpxlft_o981_lft03_m03V01","*='Specifieke informatie A'!$K$108","","Verzekerden risicoklasse- 10 t/m 14- onbepaald","zvpxlft","v981","lft03","m03V01","Verzekerden",null,"N",""]
[null,null,null,null,"zvpxlft_o981_lft04_m01V01","*='Specifieke informatie A'!$K$18","","Verzekerden risicoklasse- 15 t/m 19- onbepaald","zvpxlft","v981","lft04","m01V01","Verzekerden",null,"N",""]
[null,null,null,null,"zvpxlft_o981_lft04_m02V01","*='Specifieke informatie A'!$K$64","","Verzekerden risicoklasse- 15 t/m 19- onbepaald","zvpxlft","v981","lft04","m02V01","Verzekerden",null,"N",""]
[null,null,null,null,"zvpxlft_o981_lft04_m03V01","*='Specifieke informatie A'!$K$109","","Verzekerden risicoklasse- 15 t/m 19- onbepaald","zvpxlft","v981","lft04","m03V01","Verzekerden",null,"N",""]
[null,null,null,null,"zvpxlft_o981_lft05_m01V01","*='Specifieke informatie A'!$K$19","","Verzekerden risicoklasse- 20 t/m 24- onbepaald","zvpxlft","v981","lft05","m01V01","Verzekerden",null,"N",""]
[null,null,null,null,"zvpxlft_o981_lft05_m02V01","*='Specifieke informatie A'!$K$65","","Verzekerden risicoklasse- 20 t/m 24- onbepaald","zvpxlft","v981","lft05","m02V01","Verzekerden",null,"N",""]
[null,null,null,null,"zvpxlft_o981_lft05_m03V01","*='Specifieke informatie A'!$K$110","","Verzekerden risicoklasse- 20 t/m 24- onbepaald","zvpxlft","v981","lft05","m03V01","Verzekerden",null,"N",""]
[null,null,null,null,"zvpxlft_o981_lft06_m01V01","*='Specifieke informatie A'!$K$20","","Verzekerden risicoklasse- 25 t/m 29- onbepaald","zvpxlft","v981","lft06","m01V01","Verzekerden",null,"N",""]
[null,null,null,null,"zvpxlft_o981_lft06_m02V01","*='Specifieke informatie A'!$K$66","","Verzekerden risicoklasse- 25 t/m 29- onbepaald","zvpxlft","v981","lft06","m02V01","Verzekerden",null,"N",""]
[null,null,null,null,"zvpxlft_o981_lft06_m03V01","*='Specifieke informatie A'!$K$111","","Verzekerden risicoklasse- 25 t/m 29- onbepaald","zvpxlft","v981","lft06","m03V01","Verzekerden",null,"N",""]
[null,null,null,null,"zvpxlft_o981_lft07_m01V01","*='Specifieke informatie A'!$K$21","","Verzekerden risicoklasse- 30 t/m 34- onbepaald","zvpxlft","v981","lft07","m01V01","Verzekerden",null,"N",""]
[null,null,null,null,"zvpxlft_o981_lft07_m02V01","*='Specifieke informatie A'!$K$67","","Verzekerden risicoklasse- 30 t/m 34- onbepaald","zvpxlft","v981","lft07","m02V01","Verzekerden",null,"N",""]
[null,null,null,null,"zvpxlft_o981_lft07_m03V01","*='Specifieke informatie A'!$K$112","","Verzekerden risicoklasse- 30 t/m 34- onbepaald","zvpxlft","v981","lft07","m03V01","Verzekerden",null,"N",""]
[null,null,null,null,"zvpxlft_o981_lft08_m01V01","*='Specifieke informatie A'!$K$22","","Verzekerden risicoklasse- 35 t/m 39- onbepaald","zvpxlft","v981","lft08","m01V01","Verzekerden",null,"N",""]
[null,null,null,null,"zvpxlft_o981_lft08_m02V01","*='Specifieke informatie A'!$K$68","","Verzekerden risicoklasse- 35 t/m 39- onbepaald","zvpxlft","v981","lft08","m02V01","Verzekerden",null,"N",""]
[null,null,null,null,"zvpxlft_o981_lft08_m03V01","*='Specifieke informatie A'!$K$113","","Verzekerden risicoklasse- 35 t/m 39- onbepaald","zvpxlft","v981","lft08","m03V01","Verzekerden",null,"N",""]
[null,null,null,null,"zvpxlft_o981_lft09_m01V01","*='Specifieke informatie A'!$K$23","","Verzekerden risicoklasse- 40 t/m 44- onbepaald","zvpxlft","v981","lft09","m01V01","Verzekerden",null,"N",""]
[null,null,null,null,"zvpxlft_o981_lft09_m02V01","*='Specifieke informatie A'!$K$69","","Verzekerden risicoklasse- 40 t/m 44- onbepaald","zvpxlft","v981","lft09","m02V01","Verzekerden",null,"N",""]
[null,null,null,null,"zvpxlft_o981_lft09_m03V01","*='Specifieke informatie A'!$K$114","","Verzekerden risicoklasse- 40 t/m 44- onbepaald","zvpxlft","v981","lft09","m03V01","Verzekerden",null,"N",""]
[null,null,null,null,"zvpxlft_o981_lft10_m01V01","*='Specifieke informatie A'!$K$24","","Verzekerden risicoklasse- 45 t/m 49- onbepaald","zvpxlft","v981","lft10","m01V01","Verzekerden",null,"N",""]
[null,null,null,null,"zvpxlft_o981_lft10_m02V01","*='Specifieke informatie A'!$K$70","","Verzekerden risicoklasse- 45 t/m 49- onbepaald","zvpxlft","v981","lft10","m02V01","Verzekerden",null,"N",""]
[null,null,null,null,"zvpxlft_o981_lft10_m03V01","*='Specifieke informatie A'!$K$115","","Verzekerden risicoklasse- 45 t/m 49- onbepaald","zvpxlft","v981","lft10","m03V01","Verzekerden",null,"N",""]
[null,null,null,null,"zvpxlft_o981_lft11_m01V01","*='Specifieke informatie A'!$K$25","","Verzekerden risicoklasse- 50 t/m 54- onbepaald","zvpxlft","v981","lft11","m01V01","Verzekerden",null,"N",""]
[null,null,null,null,"zvpxlft_o981_lft11_m02V01","*='Specifieke informatie A'!$K$71","","Verzekerden risicoklasse- 50 t/m 54- onbepaald","zvpxlft","v981","lft11","m02V01","Verzekerden",null,"N",""]
[null,null,null,null,"zvpxlft_o981_lft11_m03V01","*='Specifieke informatie A'!$K$116","","Verzekerden risicoklasse- 50 t/m 54- onbepaald","zvpxlft","v981","lft11","m03V01","Verzekerden",null,"N",""]
[null,null,null,null,"zvpxlft_o981_lft12_m01V01","*='Specifieke informatie A'!$K$26","","Verzekerden risicoklasse- 55 t/m 59- onbepaald","zvpxlft","v981","lft12","m01V01","Verzekerden",null,"N",""]
[null,null,null,null,"zvpxlft_o981_lft12_m02V01","*='Specifieke informatie A'!$K$72","","Verzekerden risicoklasse- 55 t/m 59- onbepaald","zvpxlft","v981","lft12","m02V01","Verzekerden",null,"N",""]
[null,null,null,null,"zvpxlft_o981_lft12_m03V01","*='Specifieke informatie A'!$K$117","","Verzekerden risicoklasse- 55 t/m 59- onbepaald","zvpxlft","v981","lft12","m03V01","Verzekerden",null,"N",""]
[null,null,null,null,"zvpxlft_o981_lft13_m01V01","*='Specifieke informatie A'!$K$27","","Verzekerden risicoklasse- 60 t/m 64- onbepaald","zvpxlft","v981","lft13","m01V01","Verzekerden",null,"N",""]
[null,null,null,null,"zvpxlft_o981_lft13_m02V01","*='Specifieke informatie A'!$K$73","","Verzekerden risicoklasse- 60 t/m 64- onbepaald","zvpxlft","v981","lft13","m02V01","Verzekerden",null,"N",""]
[null,null,null,null,"zvpxlft_o981_lft13_m03V01","*='Specifieke informatie A'!$K$118","","Verzekerden risicoklasse- 60 t/m 64- onbepaald","zvpxlft","v981","lft13","m03V01","Verzekerden",null,"N",""]
[null,null,null,null,"zvpxlft_o981_lft14_m01V01","*='Specifieke informatie A'!$K$28","","Verzekerden risicoklasse- 65 t/m 69- onbepaald","zvpxlft","v981","lft14","m01V01","Verzekerden",null,"N",""]
[null,null,null,null,"zvpxlft_o981_lft14_m02V01","*='Specifieke informatie A'!$K$74","","Verzekerden risicoklasse- 65 t/m 69- onbepaald","zvpxlft","v981","lft14","m02V01","Verzekerden",null,"N",""]
[null,null,null,null,"zvpxlft_o981_lft14_m03V01","*='Specifieke informatie A'!$K$119","","Verzekerden risicoklasse- 65 t/m 69- onbepaald","zvpxlft","v981","lft14","m03V01","Verzekerden",null,"N",""]
[null,null,null,null,"zvpxlft_o981_lft15_m01V01","*='Specifieke informatie A'!$K$29","","Verzekerden risicoklasse- 70 t/m 74- onbepaald","zvpxlft","v981","lft15","m01V01","Verzekerden",null,"N",""]
[null,null,null,null,"zvpxlft_o981_lft15_m02V01","*='Specifieke informatie A'!$K$75","","Verzekerden risicoklasse- 70 t/m 74- onbepaald","zvpxlft","v981","lft15","m02V01","Verzekerden",null,"N",""]
[null,null,null,null,"zvpxlft_o981_lft15_m03V01","*='Specifieke informatie A'!$K$120","","Verzekerden risicoklasse- 70 t/m 74- onbepaald","zvpxlft","v981","lft15","m03V01","Verzekerden",null,"N",""]
[null,null,null,null,"zvpxlft_o981_lft16_m01V01","*='Specifieke informatie A'!$K$30","","Verzekerden risicoklasse- 75 t/m 79- onbepaald","zvpxlft","v981","lft16","m01V01","Verzekerden",null,"N",""]
[null,null,null,null,"zvpxlft_o981_lft16_m02V01","*='Specifieke informatie A'!$K$76","","Verzekerden risicoklasse- 75 t/m 79- onbepaald","zvpxlft","v981","lft16","m02V01","Verzekerden",null,"N",""]
[null,null,null,null,"zvpxlft_o981_lft16_m03V01","*='Specifieke informatie A'!$K$121","","Verzekerden risicoklasse- 75 t/m 79- onbepaald","zvpxlft","v981","lft16","m03V01","Verzekerden",null,"N",""]
[null,null,null,null,"zvpxlft_o981_lft17_m01V01","*='Specifieke informatie A'!$K$31","","Verzekerden risicoklasse- 80 t/m 84- onbepaald","zvpxlft","v981","lft17","m01V01","Verzekerden",null,"N",""]
[null,null,null,null,"zvpxlft_o981_lft17_m02V01","*='Specifieke informatie A'!$K$77","","Verzekerden risicoklasse- 80 t/m 84- onbepaald","zvpxlft","v981","lft17","m02V01","Verzekerden",null,"N",""]
[null,null,null,null,"zvpxlft_o981_lft17_m03V01","*='Specifieke informatie A'!$K$122","","Verzekerden risicoklasse- 80 t/m 84- onbepaald","zvpxlft","v981","lft17","m03V01","Verzekerden",null,"N",""]
[null,null,null,null,"zvpxlft_o981_lft18_m01V01","*='Specifieke informatie A'!$K$32","","Verzekerden risicoklasse- 85 t/m 89- onbepaald","zvpxlft","v981","lft18","m01V01","Verzekerden",null,"N",""]
[null,null,null,null,"zvpxlft_o981_lft18_m02V01","*='Specifieke informatie A'!$K$78","","Verzekerden risicoklasse- 85 t/m 89- onbepaald","zvpxlft","v981","lft18","m02V01","Verzekerden",null,"N",""]
[null,null,null,null,"zvpxlft_o981_lft18_m03V01","*='Specifieke informatie A'!$K$123","","Verzekerden risicoklasse- 85 t/m 89- onbepaald","zvpxlft","v981","lft18","m03V01","Verzekerden",null,"N",""]
[null,null,null,null,"zvpxlft_o981_lft19_m01V01","*='Specifieke informatie A'!$K$33","","Verzekerden risicoklasse- 90 en ouder- onbepaald","zvpxlft","v981","lft19","m01V01","Verzekerden",null,"N",""]
[null,null,null,null,"zvpxlft_o981_lft19_m02V01","*='Specifieke informatie A'!$K$79","","Verzekerden risicoklasse- 90 en ouder- onbepaald","zvpxlft","v981","lft19","m02V01","Verzekerden",null,"N",""]
[null,null,null,null,"zvpxlft_o981_lft19_m03V01","*='Specifieke informatie A'!$K$124","","Verzekerden risicoklasse- 90 en ouder- onbepaald","zvpxlft","v981","lft19","m03V01","Verzekerden",null,"N",""]
[null,null,null,null,"zvpxprm_s981_nomn_m01V01","*='Specifieke informatie A'!$L$40","","Verzekerden premiekenmerk- zonder nominale premie ZVW","zvpxprm","s981","nomn","m01V01","Verzekerden",null,"N",""]
[null,null,null,null,"zvpxprm_s981_nomn_m02V01","*='Specifieke informatie A'!$L$86","","Verzekerden premiekenmerk- zonder nominale premie ZVW","zvpxprm","s981","nomn","m02V01","Verzekerden",null,"N",""]
[null,null,null,null,"zvpxprm_s981_nomn_m03V01","*='Specifieke informatie A'!$L$131","","Verzekerden premiekenmerk- zonder nominale premie ZVW","zvpxprm","s981","nomn","m03V01","Verzekerden",null,"N",""]
[null,null,null,null,"zvpxprm_s981_nomy_m01V01","*='Specifieke informatie A'!$L$39","","Verzekerden premiekenmerk- met nominale premie ZVW","zvpxprm","s981","nomy","m01V01","Verzekerden",null,"N",""]
[null,null,null,null,"zvpxprm_s981_nomy_m02V01","*='Specifieke informatie A'!$L$85","","Verzekerden premiekenmerk- met nominale premie ZVW","zvpxprm","s981","nomy","m02V01","Verzekerden",null,"N",""]
[null,null,null,null,"zvpxprm_s981_nomy_m03V01","*='Specifieke informatie A'!$L$130","","Verzekerden premiekenmerk- met nominale premie ZVW","zvpxprm","s981","nomy","m03V01","Verzekerden",null,"N",""]

{"sheet":"Parameters","index":7,"n_rows":34,"n_cols":3,"rows_kept":34,"cut":false,"hidden":true,"merged":[]}
[]
["Kwartaal:",1]
["Jaar:",2020]
["Wet:","ZVW"]
["Document:",{"$f":"CONCATENATE(\"INF\",jaar_id,wet_id,\".\",kwartaal_id)","v":"INF2020ZVW.1"}]
["Revisie:","B"]
["Revisiedatum:","2020-01-01"]
["Versie:",{"$f":"CONCATENATE(document_id,revisie_id)","v":"INF2020ZVW.1B"}]
[]
[]
[]
["NUMMER_UO","NAAM_UO","FORMAT_UO1"]
["0000","KIES UW UZOVI-NUMMER",{"$f":"CONCATENATE(A13,\" \",B13)","v":"0000 KIES UW UZOVI-NUMMER"}]
["0101","UNIVÉ ZORG","0101 UNIVÉ ZORG"]
["0104","NATIONALE-NEDERLANDEN ZORG","0104 NATIONALE-NEDERLANDEN ZORG"]
["0201","OHRA ZIEKTEKOSTENVERZEKERINGEN","0201 OHRA ZIEKTEKOSTENVERZEKERINGEN"]
["0403","ASR","0403 ASR"]
["0699","IZA","0699 IZA"]
["0736","UMC","0736 UMC"]
["3311","ZILVEREN KRUIS","3311 ZILVEREN KRUIS"]
["3313","INTERPOLIS","3313 INTERPOLIS"]
["3332","MENZIS","3332 MENZIS"]
["3333","ANDERZORG","3333 ANDERZORG"]
["3343","ONVZ",{"$f":"CONCATENATE(A24,\" \",B24)","v":"3343 ONVZ"}]
["3347","ENO","3347 ENO"]
["3351","FBTO","3351 FBTO"]
["3352","IPTIQ","3352 IPTIQ"]
["3358","DE FRIESLAND","3358 DE FRIESLAND"]
["3359","EUCARE","3359 EUCARE"]
["7029","DSW","7029 DSW"]
["7037","STAD HOLLAND","7037 STAD HOLLAND"]
["7085","ZORG EN ZEKERHEID","7085 ZORG EN ZEKERHEID"]
["7095","VGZ ZORGVERZEKERAAR","7095 VGZ ZORGVERZEKERAAR"]
["7119","CZ","7119 CZ"]